fUSD/lending_fUSD_20260226
["ID","MTS","AMOUNT","RATE_DAILY","PERIOD"]
[406727450,1772123449443,-150.0,0.00016912,2]
[406727451,1772123449453,-150.0,0.0001692,2]
[406727452,1772123449462,-150.0,0.0001692,2]
[406727453,1772123449474,-150.0,0.00016925,2]
[406727454,1772123449483,-187.29970089,0.00016927,2]
[406727455,1772123449493,-156.66979557,0.00016927,2]
[406727456,1772123449502,-339.21457322,0.00016927,2]
[406727457,1772123449513,-150.0,0.00016933,2]
[406727458,1772123449527,-150.0,0.00016936,2]
[406727459,1772123449546,-150.0,0.00016941,2]
[406727460,1772123449557,-187.29970089,0.00016945,2]
[406727461,1772123449570,-156.66979557,0.00016945,2]
[406727462,1772123449579,-339.21457322,0.00016945,2]
[406727463,1772123449589,-150.0,0.00016952,2]
[406727464,1772123449598,-150.0,0.00016953,2]
[406727465,1772123449608,-187.29970089,0.00016964,2]
[406727466,1772123449618,-156.66979557,0.00016964,2]
[406727467,1772123449627,-339.21457322,0.00016964,2]
[406727468,1772123449637,-150.0,0.00016964,2]
[406727469,1772123449647,-150.0,0.00016965,2]
[406727470,1772123449656,-1100.0,0.0001697,2]
[406727471,1772123449665,-150.0,0.00016971,2]
[406727472,1772123449675,-150.0,0.00016971,2]
[406727473,1772123449684,-150.0,0.00016974,2]
[406727474,1772123449693,-27067.80659463,0.00016975,2]
[406727475,1772123449702,-150.0,0.00016979,2]
[406727476,1772123449712,-187.29970089,0.00016982,2]
[406727477,1772123449723,-156.66979557,0.00016982,2]
[406727478,1772123449732,-339.21457322,0.00016982,2]
[406727479,1772123449741,-150.0,0.00016983,2]
[406727480,1772123449751,-150.0,0.00016983,2]
[406727481,1772123449760,-606.4,0.00016986,2]
[406727482,1772123449769,-150.0,0.00016991,2]
[406727483,1772123449778,-188.647616,0.00016992,7]
[406727484,1772123449788,-150.0,0.00016994,2]
[406727485,1772123449797,-150.0,0.00016995,2]
[406727486,1772123449807,-500.0,0.00016999,2]
[406727487,1772123449816,-500.0,0.00016999,2]
[406727488,1772123449826,-500.0,0.00016999,15]
[406727489,1772123449835,-500.0,0.00016999,16]
[406727490,1772123449845,-187.29970089,0.00017,2]
[406727491,1772123449854,-156.66979557,0.00017,2]
[406727492,1772123449864,-339.21457322,0.00017,2]
[406727493,1772123449873,-500.0,0.00017,7]
[406727494,1772123449883,-417.39,0.00017,7]
[406727495,1772123449892,-300.0,0.00017,2]
[406727496,1772123449902,-150.0,0.00017006,2]
[406727497,1772123449912,-150.0,0.0001701,2]
[406727498,1772123449921,-150.0,0.00017016,2]
[406727499,1772123449931,-187.29970089,0.00017018,2]
[406727500,1772123449941,-156.66979557,0.00017018,2]
[406727501,1772123449950,-339.21457322,0.00017018,2]
[406727502,1772123449959,-150.0,0.00017018,2]
[406727503,1772123450062,-150.0,0.00017033,2]
[406727504,1772123450073,-187.29970089,0.00017036,2]
[406727505,1772123450083,-156.66979557,0.00017036,2]
[406727506,1772123450092,-339.21457322,0.00017036,2]
[406727507,1772123450103,-150.0,0.00017037,2]
[406727508,1772123450112,-200.0,0.00017039,2]
[406727509,1772123450121,-200.0,0.00017039,2]
[406727510,1772123450131,-200.0,0.00017039,2]
[406727511,1772123450140,-200.0,0.00017039,2]
[406727512,1772123450149,-200.0,0.00017039,2]
[406727513,1772123450159,-200.0,0.00017039,2]
[406727514,1772123450168,-200.0,0.00017039,2]
[406727515,1772123450178,-200.0,0.00017039,2]
[406727516,1772123450187,-200.0,0.00017039,2]
[406727517,1772123450197,-200.0,0.00017039,2]
[406727518,1772123450206,-200.0,0.00017039,2]
[406727519,1772123450216,-200.0,0.00017039,2]
[406727520,1772123450229,-200.0,0.00017039,2]
[406727521,1772123450238,-200.0,0.00017039,2]
[406727522,1772123450247,-200.0,0.00017039,2]
[406727523,1772123450256,-200.0,0.00017039,2]
[406727524,1772123450265,-200.0,0.00017039,2]
[406727525,1772123450275,-200.0,0.00017039,2]
[406727526,1772123450284,-200.0,0.00017039,2]
[406727527,1772123450293,-200.0,0.00017039,2]
[406727528,1772123450302,-200.0,0.00017039,2]
[406727529,1772123450312,-200.0,0.00017039,2]
[406727530,1772123450322,-200.0,0.00017039,2]
[406727531,1772123450331,-200.0,0.00017039,2]
[406727532,1772123450340,-200.0,0.00017039,2]
[406727533,1772123450350,-200.0,0.00017039,2]
[406727534,1772123450359,-200.0,0.00017039,2]
[406727535,1772123450368,-200.0,0.00017039,2]
[406727536,1772123450378,-200.0,0.00017039,2]
[406727537,1772123450387,-200.0,0.00017039,2]
[406727538,1772123450396,-200.0,0.00017039,2]
[406727539,1772123450406,-200.0,0.00017039,2]
[406727540,1772123450415,-200.0,0.00017039,2]
[406727541,1772123450424,-200.0,0.00017039,2]
[406727542,1772123450433,-200.0,0.00017039,2]
[406727543,1772123450442,-200.0,0.00017039,2]
[406727544,1772123450452,-240.0,0.00017039,2]
[406727545,1772123450461,-800.0,0.00017039,2]
[406727546,1772123450470,-800.0,0.00017039,2]
[406727547,1772123450480,-800.0,0.00017039,2]
[406727548,1772123450489,-800.0,0.00017039,2]
[406727549,1772123450498,-800.0,0.00017039,2]
[406727550,1772123450507,-800.0,0.00017039,2]
[406727551,1772123450517,-800.0,0.00017039,2]
[406727552,1772123450526,-800.0,0.00017039,2]
[406727553,1772123450535,-800.0,0.00017039,2]
[406727554,1772123450544,-800.0,0.00017039,2]
[406727555,1772123450553,-800.0,0.00017039,2]
[406727556,1772123450563,-800.0,0.00017039,2]
[406727557,1772123450576,-800.0,0.00017039,2]
[406727558,1772123450586,-800.0,0.00017039,2]
[406727559,1772123450595,-800.0,0.00017039,2]
[406727560,1772123450605,-800.0,0.00017039,2]
[406727561,1772123450614,-800.0,0.00017039,2]
[406727562,1772123450623,-800.0,0.00017039,2]
[406727563,1772123450633,-800.0,0.00017039,2]
[406727564,1772123450643,-800.0,0.00017039,2]
[406727565,1772123450653,-800.0,0.00017039,2]
[406727566,1772123450663,-800.0,0.00017039,2]
[406727567,1772123450673,-800.0,0.00017039,2]
[406727568,1772123450682,-800.0,0.00017039,2]
[406727569,1772123450692,-800.0,0.00017039,2]
[406727570,1772123450702,-800.0,0.00017039,2]
[406727571,1772123450711,-800.0,0.00017039,2]
[406727572,1772123450722,-800.0,0.00017039,2]
[406727573,1772123450732,-800.0,0.00017039,2]
[406727574,1772123450741,-800.0,0.00017039,2]
[406727575,1772123450750,-800.0,0.00017039,2]
[406727576,1772123450759,-800.0,0.00017039,2]
[406727577,1772123450769,-800.0,0.00017039,2]
[406727578,1772123450778,-800.0,0.00017039,2]
[406727579,1772123450787,-800.0,0.00017039,2]
[406727580,1772123450797,-800.0,0.00017039,2]
[406727581,1772123450806,-800.0,0.00017039,2]
[406727582,1772123450817,-800.0,0.00017039,2]
[406727583,1772123450826,-800.0,0.00017039,2]
[406727584,1772123450836,-800.0,0.00017039,2]
[406727585,1772123450845,-800.0,0.00017039,2]
[406727586,1772123450855,-800.0,0.00017039,2]
[406727587,1772123450865,-433.0,0.00017039,2]
[406727588,1772123450874,-202.67,0.0001704,14]
[406727589,1772123450884,-202.68,0.0001704,14]
[406727590,1772123450893,-150.0,0.00017045,2]
[406727591,1772123450902,-150.0,0.00017047,2]
[406727592,1772123450913,-187.29970089,0.00017055,2]
[406727593,1772123450922,-156.66979557,0.00017055,2]
[406727594,1772123450931,-339.21457322,0.00017055,2]
[406727595,1772123450941,-150.0,0.00017055,2]
[406727596,1772123450951,-150.0,0.00017058,2]
[406727597,1772123450960,-150.0,0.0001706,2]
[406727598,1772123450971,-150.0,0.00017061,2]
[406727599,1772123450981,-150.0,0.00017061,2]
[406727600,1772123450991,-187.29970089,0.00017073,2]
[406727601,1772123451000,-156.66979557,0.00017073,2]
[406727602,1772123451009,-339.21457322,0.00017073,2]
[406727603,1772123451019,-150.0,0.00017073,2]
[406727604,1772123451028,-150.0,0.00017079,2]
[406727605,1772123451037,-150.0,0.00017087,2]
[406727606,1772123451045,-187.29970089,0.00017091,2]
[406727607,1772123451054,-156.66979557,0.00017091,2]
[406727608,1772123451063,-339.21457322,0.00017091,2]
[406727609,1772123451071,-500.0,0.00017099,2]
[406727610,1772123451080,-500.0,0.00017099,2]
[406727611,1772123451088,-151.0,0.00017099,2]
[406727612,1772123451097,-500.0,0.00017099,2]
[406727613,1772123451106,-500.0,0.00017099,2]
[406727614,1772123451116,-500.0,0.00017099,2]
[406727615,1772123451125,-500.0,0.00017099,2]
[406727616,1772123451135,-500.0,0.00017099,2]
[406727617,1772123451144,-500.0,0.00017099,2]
[406727618,1772123451153,-500.0,0.00017099,2]
[406727619,1772123451162,-500.0,0.00017099,2]
[406727620,1772123451172,-500.0,0.00017099,2]
[406727621,1772123451181,-500.0,0.00017099,2]
[406727622,1772123451190,-500.0,0.00017099,2]
[406727623,1772123451199,-373.19905658,0.00017099,2]
[406727624,1772123451208,-693.3919763,0.00017099,2]
[406727625,1772123451218,-309.29654756,0.00017099,2]
[406727626,1772123451230,-150.0,0.000171,2]
[406727627,1772123451239,-150.0,0.000171,2]
[406727628,1772123451248,-150.0,0.000171,2]
[406727629,1772123451258,-150.0,0.000171,2]
[406727630,1772123451267,-150.0,0.000171,2]
[406727631,1772123451276,-150.0,0.000171,2]
[406727632,1772123451286,-18386.068904,0.000171,2]
[406727633,1772123451295,-5436.70489032,0.000171,2]
[406727634,1772123451304,-187.29970089,0.00017109,2]
[406727635,1772123451314,-156.66979557,0.00017109,2]
[406727636,1772123451323,-339.21457322,0.00017109,2]
[406727637,1772123451333,-150.0,0.00017113,2]
[406727638,1772123451342,-150.0,0.00017121,2]
[406727639,1772123451351,-187.29970089,0.00017127,2]
[406727640,1772123451361,-156.66979557,0.00017127,2]
[406727641,1772123451370,-339.21457322,0.00017127,2]
[406727642,1772123451380,-150.0,0.00017127,2]
[406727643,1772123451389,-292.11,0.00017136,2]
[406727644,1772123451398,-150.0,0.00017139,2]
[406727645,1772123451407,-150.0,0.00017139,2]
[406727646,1772123451416,-150.0,0.0001714,2]
[406727647,1772123451426,-150.0,0.00017142,2]
[406727648,1772123451435,-150.0,0.00017145,2]
[406727649,1772123451444,-187.29970089,0.00017145,2]
[406727650,1772123451454,-156.66979557,0.00017145,2]
[406727651,1772123451463,-339.21457322,0.00017145,2]
[406727652,1772123451472,-150.0,0.00017153,2]
[406727653,1772123451482,-719.04747942,0.00017154,2]
[406727654,1772123451491,-150.0,0.00017155,2]
[406727655,1772123451501,-150.0,0.00017163,2]
[406727656,1772123451591,-187.29970089,0.00017164,2]
[406727657,1772123451611,-156.66979557,0.00017164,2]
[406727658,1772123451622,-339.21457322,0.00017164,2]
[406727659,1772123451632,-150.0,0.00017167,2]
[406727660,1772123451643,-187.29970089,0.00017182,2]
[406727661,1772123451654,-156.66979557,0.00017182,2]
[406727662,1772123451663,-339.21457322,0.00017182,2]
[406727663,1772123451673,-150.0,0.00017182,2]
[406727664,1772123451683,-150.0,0.00017184,2]
[406727665,1772123451692,-150.0,0.0001719,2]
[406727666,1772123451701,-150.0,0.00017194,2]
[406727667,1772123451711,-187.29970089,0.000172,2]
[406727668,1772123451722,-156.66979557,0.000172,2]
[406727669,1772123451731,-339.21457322,0.000172,2]
[406727670,1772123451741,-1306.0,0.000172,2]
[406727671,1772123451750,-1911.0,0.000172,2]
[406727672,1772123451759,-150.0,0.00017205,2]
[406727673,1772123451770,-150.0,0.00017206,2]
[406727674,1772123451779,-745.65223616,0.00017209,2]
[406727675,1772123451788,-150.0,0.00017209,2]
[406727676,1772123451798,-150.0,0.00017217,2]
[406727677,1772123451807,-150.0,0.00017217,2]
[406727678,1772123451816,-187.29970089,0.00017218,2]
[406727679,1772123451826,-156.66979557,0.00017218,2]
[406727680,1772123451835,-339.21457322,0.00017218,2]
[406727681,1772123451844,-150.0,0.00017221,2]
[406727682,1772123451854,-150.0,0.00017226,2]
[406727683,1772123451864,-150.0,0.00017229,2]
[406727684,1772123451873,-150.0,0.00017229,2]
[406727685,1772123451883,-150.0,0.00017235,2]
[406727686,1772123451894,-187.29970089,0.00017236,2]
[406727687,1772123451903,-156.66979557,0.00017236,2]
[406727688,1772123451913,-339.21457322,0.00017236,2]
[406727689,1772123451923,-150.0,0.00017236,2]
[406727690,1772123451933,-150.0,0.00017247,2]
[406727691,1772123451942,-150.0,0.00017248,2]
[406727692,1772123451951,-187.29970089,0.00017255,2]
[406727693,1772123451960,-156.66979557,0.00017255,2]
[406727694,1772123451969,-339.21457322,0.00017255,2]
[406727695,1772123451978,-150.0,0.00017259,2]
[406727696,1772123451987,-606.4,0.0001726,2]
[406727697,1772123451997,-1000.0,0.0001726,2]
[406727698,1772123452006,-150.0,0.00017264,2]
[406727699,1772123452016,-773.2413689,0.00017264,2]
[406727700,1772123452025,-150.0,0.00017267,2]
[406727701,1772123452034,-187.29970089,0.00017273,2]
[406727702,1772123452044,-156.66979557,0.00017273,2]
[406727703,1772123452053,-339.21457322,0.00017273,2]
[406727704,1772123452063,-150.0,0.00017275,2]
[406727705,1772123452072,-150.0,0.0001728,2]
[406727706,1772123452081,-150.0,0.0001728,2]
[406727707,1772123452090,-350.0,0.00017288,4]
[406727708,1772123452100,-150.0,0.00017288,2]
[406727709,1772123452108,-187.29970089,0.00017291,2]
[406727710,1772123452117,-156.66979557,0.00017291,2]
[406727711,1772123452127,-339.21457322,0.00017291,2]
[406727712,1772123452136,-150.0,0.00017291,2]
[406727713,1772123452145,-150.0,0.00017296,2]
[406727714,1772123452155,-150.0,0.00017296,2]
[406727715,1772123452164,-150.0,0.00017301,2]
[406727716,1772123452173,-187.29970089,0.00017309,2]
[406727717,1772123452183,-156.66979557,0.00017309,2]
[406727718,1772123452192,-339.21457322,0.00017309,2]
[406727719,1772123452201,-150.0,0.00017309,2]
[406727720,1772123452211,-150.0,0.00017312,2]
[406727721,1772123452220,-150.0,0.00017318,2]
[406727722,1772123452230,-801.85129955,0.00017319,2]
[406727723,1772123452239,-150.0,0.00017325,2]
[406727724,1772123452248,-187.29970089,0.00017327,2]
[406727725,1772123452257,-156.66979557,0.00017327,2]
[406727726,1772123452267,-339.21457322,0.00017327,2]
[406727727,1772123452276,-150.0,0.00017328,2]
[406727728,1772123452285,-150.0,0.0001733,2]
[406727729,1772123452295,-529.0,0.00017345,2]
[406727730,1772123452304,-187.29970089,0.00017345,2]
[406727731,1772123452313,-156.66979557,0.00017345,2]
[406727732,1772123452322,-339.21457322,0.00017345,2]
[406727733,1772123452332,-150.0,0.00017345,2]
[406727734,1772123452341,-150.0,0.00017351,2]
[406727735,1772123452350,-150.0,0.00017355,2]
[406727736,1772123452359,-845.0,0.0001736,2]
[406727737,1772123452369,-2844.0,0.0001736,2]
[406727738,1772123452378,-187.29970089,0.00017364,2]
[406727739,1772123452388,-156.66979557,0.00017364,2]
[406727740,1772123452399,-339.21457322,0.00017364,2]
[406727741,1772123452410,-150.0,0.00017365,2]
[406727742,1772123452419,-150.0,0.0001737,2]
[406727743,1772123452429,-150.0,0.00017372,2]
[406727744,1772123452439,-150.0,0.00017373,2]
[406727745,1772123452450,-150.0,0.00017374,2]
[406727746,1772123452460,-150.0,0.00017374,2]
[406727747,1772123452471,-831.51979763,0.00017374,2]
[406727748,1772123452480,-187.29970089,0.00017382,2]
[406727749,1772123452489,-156.66979557,0.00017382,2]
[406727750,1772123452498,-339.21457322,0.00017382,2]
[406727751,1772123452508,-150.0,0.00017382,2]
[406727752,1772123452517,-150.0,0.00017393,2]
[406727753,1772123452526,-187.29970089,0.000174,2]
[406727754,1772123452536,-150.0,0.000174,2]
[406727755,1772123452545,-156.66979557,0.000174,2]
[406727756,1772123452554,-339.21457322,0.000174,2]
[406727757,1772123452564,-150.0,0.000174,2]
[406727758,1772123452577,-1100.0,0.000174,6]
[406727759,1772123452588,-150.0,0.00017409,2]
[406727760,1772123452597,-150.0,0.00017414,2]
[406727761,1772123452607,-150.0,0.00017415,2]
[406727762,1772123452619,-150.0,0.00017418,2]
[406727763,1772123452629,-187.29970089,0.00017418,2]
[406727764,1772123452639,-156.66979557,0.00017418,2]
[406727765,1772123452651,-339.21457322,0.00017418,2]
[406727766,1772123452661,-150.0,0.00017427,2]
[406727767,1772123452670,-862.28603014,0.00017429,2]
[406727768,1772123452680,-150.0,0.00017435,2]
[406727769,1772123452690,-150.0,0.00017436,2]
[406727770,1772123452699,-187.29970089,0.00017436,2]
[406727771,1772123452708,-156.66979557,0.00017436,2]
[406727772,1772123452718,-339.21457322,0.00017436,2]
[406727773,1772123452730,-150.0,0.00017452,2]
[406727774,1772123452739,-150.0,0.00017452,2]
[406727775,1772123452748,-187.29970089,0.00017455,2]
[406727776,1772123452759,-156.66979557,0.00017455,2]
[406727777,1772123452768,-339.21457322,0.00017455,2]
[406727778,1772123452778,-150.0,0.00017455,2]
[406727779,1772123452787,-150.0,0.00017456,2]
[406727780,1772123452796,-150.0,0.0001746,2]
[406727781,1772123452806,-150.0,0.0001746,2]
[406727782,1772123452816,-150.0,0.00017463,2]
[406727783,1772123452826,-150.0,0.00017471,2]
[406727784,1772123452836,-187.29970089,0.00017473,2]
[406727785,1772123452845,-156.66979557,0.00017473,2]
[406727786,1772123452855,-339.21457322,0.00017473,2]
[406727787,1772123452865,-150.0,0.00017477,2]
[406727788,1772123452874,-150.0,0.00017482,2]
[406727789,1772123452883,-894.19061326,0.00017484,2]
[406727790,1772123452893,-150.0,0.00017486,2]
[406727791,1772123452903,-150.0,0.00017486,2]
[406727792,1772123452912,-150.0,0.0001749,2]
[406727793,1772123452922,-187.29970089,0.00017491,2]
[406727794,1772123452933,-156.66979557,0.00017491,2]
[406727795,1772123452943,-339.21457322,0.00017491,2]
[406727796,1772123452952,-150.0,0.00017498,2]
[406727797,1772123453055,-1100.0,0.000175,6]
[406727798,1772123453066,-150.0,0.00017505,2]
[406727799,1772123453076,-187.29970089,0.00017509,2]
[406727800,1772123453085,-156.66979557,0.00017509,2]
[406727801,1772123453095,-339.21457322,0.00017509,2]
[406727802,1772123453104,-150.0,0.00017509,2]
[406727803,1772123453114,-350.0,0.00017516,2]
[406727804,1772123453123,-150.0,0.00017516,2]
[406727805,1772123453132,-150.0,0.00017519,2]
[406727806,1772123453142,-150.0,0.00017524,2]
[406727807,1772123453151,-187.29970089,0.00017527,2]
[406727808,1772123453160,-156.66979557,0.00017527,2]
[406727809,1772123453170,-339.21457322,0.00017527,2]
[406727810,1772123453180,-150.0,0.0001753,2]
[406727811,1772123453189,-150.0,0.0001753,2]
[406727812,1772123453198,-606.4,0.00017534,2]
[406727813,1772123453208,-1000.0,0.00017534,2]
[406727814,1772123453218,-150.0,0.00017536,2]
[406727815,1772123453229,-300.0,0.00017538,2]
[406727816,1772123453238,-666.0,0.00017538,2]
[406727817,1772123453248,-927.27566595,0.00017539,2]
[406727818,1772123453257,-150.0,0.0001754,2]
[406727819,1772123453267,-150.0,0.00017543,2]
[406727820,1772123453277,-300.0,0.00017544,2]
[406727821,1772123453287,-662.41100623,0.00017544,2]
[406727822,1772123453297,-187.29970089,0.00017545,2]
[406727823,1772123453307,-156.66979557,0.00017545,2]
[406727824,1772123453316,-339.21457322,0.00017545,2]
[406727825,1772123453326,-150.0,0.0001755,2]
[406727826,1772123453335,-300.0,0.00017557,2]
[406727827,1772123453345,-529.0,0.00017558,2]
[406727828,1772123453354,-150.0,0.0001756,2]
[406727829,1772123453364,-187.29970089,0.00017564,2]
[406727830,1772123453373,-156.66979557,0.00017564,2]
[406727831,1772123453382,-339.21457322,0.00017564,2]
[406727832,1772123453392,-150.0,0.00017564,2]
[406727833,1772123453401,-150.0,0.0001757,2]
[406727834,1772123453411,-150.0,0.00017576,2]
[406727835,1772123453420,-150.0,0.00017581,2]
[406727836,1772123453430,-187.29970089,0.00017582,2]
[406727837,1772123453439,-156.66979557,0.00017582,2]
[406727838,1772123453449,-339.21457322,0.00017582,2]
[406727839,1772123453459,-150.0,0.00017591,2]
[406727840,1772123453468,-961.58486559,0.00017594,2]
[406727841,1772123453479,-150.0,0.00017595,2]
[406727842,1772123453490,-150.0,0.00017597,2]
[406727843,1772123453501,-187.29970089,0.000176,2]
[406727844,1772123453510,-156.66979557,0.000176,2]
[406727845,1772123453520,-339.21457322,0.000176,2]
[406727846,1772123453536,-1100.0,0.000176,6]
[406727847,1772123453545,-150.0,0.00017602,2]
[406727848,1772123453555,-150.0,0.00017609,2]
[406727849,1772123453564,-150.0,0.00017609,2]
[406727850,1772123453576,-187.29970089,0.00017618,2]
[406727851,1772123453585,-156.66979557,0.00017618,2]
[406727852,1772123453594,-339.21457322,0.00017618,2]
[406727853,1772123453603,-150.0,0.00017618,2]
[406727854,1772123453613,-150.0,0.00017623,2]
[406727855,1772123453622,-150.0,0.00017624,2]
[406727856,1772123453631,-187.0,0.00017624,7]
[406727857,1772123453641,-210.0,0.00017625,7]
[406727858,1772123453653,-150.0,0.00017629,2]
[406727859,1772123453662,-187.29970089,0.00017636,2]
[406727860,1772123453672,-156.66979557,0.00017636,2]
[406727861,1772123453681,-339.21457322,0.00017636,2]
[406727862,1772123453693,-150.0,0.0001764,2]
[406727863,1772123453713,-150.0,0.0001764,2]
[406727864,1772123453731,-1833.85447521,0.0001764,2]
[406727865,1772123453750,-150.0,0.00017644,2]
[406727866,1772123453769,-529.0,0.00017644,2]
[406727867,1772123453784,-150.0,0.00017645,2]
[406727868,1772123453803,-151.0,0.00017647,2]
[406727869,1772123453823,-150.0,0.00017651,2]
[406727870,1772123453844,-187.29970089,0.00017655,2]
[406727871,1772123453862,-156.66979557,0.00017655,2]
[406727872,1772123453879,-339.21457322,0.00017655,2]
[406727873,1772123453898,-150.0,0.00017665,2]
[406727874,1772123453913,-700.0,0.0001767,2]
[406727875,1772123453930,-187.29970089,0.00017673,2]
[406727876,1772123453944,-156.66979557,0.00017673,2]
[406727877,1772123453960,-339.21457322,0.00017673,2]
[406727878,1772123453975,-150.0,0.00017673,2]
[406727879,1772123453989,-150.0,0.00017678,2]
[406727880,1772123454004,-190.0,0.0001768,2]
[406727881,1772123454019,-150.0,0.00017682,2]
[406727882,1772123454035,-150.0,0.00017685,2]
[406727883,1772123454052,-150.0,0.00017686,2]
[406727884,1772123454066,-150.0,0.00017687,2]
[406727885,1772123454081,-150.0,0.00017687,2]
[406727886,1772123454096,-187.29970089,0.00017691,2]
[406727887,1772123454111,-156.66979557,0.00017691,2]
[406727888,1772123454125,-339.21457322,0.00017691,2]
[406727889,1772123454140,-150.0,0.000177,2]
[406727890,1772123454155,-1100.0,0.000177,6]
[406727891,1772123454170,-150.0,0.00017704,2]
[406727892,1772123454184,-150.0,0.00017707,2]
[406727893,1772123454200,-187.29970089,0.00017709,2]
[406727894,1772123454218,-156.66979557,0.00017709,2]
[406727895,1772123454233,-339.21457322,0.00017709,2]
[406727896,1772123454247,-700.0,0.00017726,7]
[406727897,1772123454262,-500.0,0.00017726,7]
[406727898,1772123454278,-500.0,0.00017726,7]
[406727899,1772123454293,-187.29970089,0.00017727,2]
[406727900,1772123454308,-156.66979557,0.00017727,2]
[406727901,1772123454324,-339.21457322,0.00017727,2]
[406727902,1772123454342,-150.0,0.00017727,2]
[406727903,1772123454358,-150.0,0.00017728,2]
[406727904,1772123454373,-150.0,0.0001773,2]
[406727905,1772123454388,-693.94657191,0.0001773,2]
[406727906,1772123454403,-150.0,0.00017731,2]
[406727907,1772123454418,-150.0,0.00017735,2]
[406727908,1772123454433,-150.0,0.00017743,2]
[406727909,1772123454447,-150.0,0.00017743,2]
[406727910,1772123454462,-1000.0,0.00017744,2]
[406727911,1772123454477,-187.29970089,0.00017745,2]
[406727913,1772123454492,-156.66979557,0.00017745,2]
[406727914,1772123454507,-339.21457322,0.00017745,2]
[406727915,1772123454522,-150.0,0.00017749,2]
[406727916,1772123454543,-150.0,0.00017754,2]
[406727917,1772123454557,-150.0,0.00017755,2]
[406727918,1772123454571,-150.0,0.00017758,2]
[406727919,1772123454588,-529.0,0.00017761,2]
[406727920,1772123454603,-187.29970089,0.00017764,2]
[406727921,1772123454618,-156.66979557,0.00017764,2]
[406727922,1772123454633,-339.21457322,0.00017764,2]
[406727923,1772123454648,-150.0,0.00017765,2]
[406727924,1772123454663,-150.0,0.00017765,2]
[406727925,1772123454677,-150.0,0.0001777,2]
[406727926,1772123454692,-150.0,0.00017775,2]
[406727927,1772123454833,-187.29970089,0.00017782,2]
[406727928,1772123454848,-156.66979557,0.00017782,2]
[406727929,1772123454857,-339.21457322,0.00017782,2]
[406727930,1772123454867,-150.0,0.00017782,2]
[406727931,1772123454876,-150.0,0.00017785,2]
[406727932,1772123454885,-150.0,0.00017788,2]
[406727933,1772123454894,-150.0,0.00017791,2]
[406727934,1772123454904,-187.29970089,0.000178,2]
[406727935,1772123454913,-156.66979557,0.000178,2]
[406727936,1772123454922,-339.21457322,0.000178,2]
[406727937,1772123454932,-1635.0,0.000178,6]
[406727938,1772123454941,-150.0,0.00017801,2]
[406727939,1772123454951,-606.4,0.00017808,2]
[406727940,1772123454962,-500.0,0.00017808,2]
[406727941,1772123454975,-500.0,0.00017808,2]
[406727942,1772123454984,-500.0,0.00017808,2]
[406727943,1772123454994,-500.0,0.00017808,2]
[406727944,1772123455004,-500.0,0.00017808,2]
[406727945,1772123455014,-500.0,0.00017808,2]
[406727946,1772123455023,-500.0,0.00017808,2]
[406727947,1772123455032,-500.0,0.00017808,2]
[406727948,1772123455041,-500.0,0.00017808,2]
[406727949,1772123455051,-500.0,0.00017808,2]
[406727950,1772123455061,-500.0,0.00017808,2]